Workbook

Sheet Calculator
B2: Family Cost Participation Program (FCPP) Calculator
B4: Consumer Information
B5: Please complete the following information:
B6: Consumer Name | K6: Monthly Maximum Allowable Amount
B7: FCPP Assess Date | K7: Age Groups | L7: Maximum Fee
B8: Date of Birth | G8: =IF(OR(Age="", Age <= MaxAge), "", CONCATENATE(" Consumer is over age ", MAX(tblCAG[[From Age]:[To Age]]), ". No FCPP Required.")) ->  | K8: 0-2 | L8: =Variables!P4/12 -> 1722
B9: Age | D9: =IF(OR(ISBLANK(DOB), ISBLANK(AssessDate)), "", DATEDIF(DOB,AssessDate,"Y")) ->  | K9: 3-5 | L9: =Variables!P5/12 -> 1723
B10: UCI Number | K10: 6-8 | L10: =Variables!P6/12 -> 1690
B11: Service Coordinator | K11: 9-11 | L11: =Variables!P7/12 -> 1797
B12: Family Size | K12: 12-14 | L12: =Variables!P8/12 -> 1825
B13: # of Consumers | K13: 15-17 | L13: =Variables!P9/12 -> 2012
B14: Gross Income
B15: FCP % *see FCPA Schedule | D15: =IF(OR(ISBLANK(GIP), Age=""), "", IF(GIP<VLOOKUP(FamSize,Variables!A5:D13,4), "", IF(Age>MaxAge, "", IF(varNGIP, 1 * AdjMultiCons, FCPPercent * AdjMultiCons)))) ->  | G15: =IF(ISBLANK(GIP), "", IF(GIP<VLOOKUP(FamSize,Variables!A5:D13,4), " Gross income is below 400% of FPL. Family's share of cost is $0.", "")) -> 
B16: Executive Director's Adjusted FCP %
B19: Services | C19: IPP Units | D19: Time Period | E19: Rate | F19: Start Date | G19: End Date | H19: Regional Center | J19: Family Share (FS) | L19: Monthly
C20: Hours | H20: Units/Hours | I20: Cost | J20: Units/Hours | K20: Cost | L20: FS Cost
H21: =IF(OR(ISBLANK(tblCalculator[[#This Row],[IPPHours]]), ISBLANK(tblCalculator[[#This Row],[Rate]]), FCP=""), "", IF(ISBLANK(AdjFCP), ROUNDUP(tblCalculator[[#This Row],[IPPHours]]*(1-FCP),0), ROUNDUP(tblCalculator[[#This Row],[IPPHours]]*(1-AdjFCP), 0))) ->  | I21: =IF(OR(ISBLANK(tblCalculator[[#This Row],[IPPHours]]), ISBLANK(tblCalculator[[#This Row],[Rate]]), FCP=""), "", tblCalculator[RCHours]*tblCalculator[[#This Row],[Rate]]) ->  | J21: =IF(OR(ISBLANK(tblCalculator[[#This Row],[IPPHours]]), ISBLANK(tblCalculator[[#This Row],[Rate]]), FCP=""), "", IF(ISBLANK(AdjFCP), ROUNDDOWN(tblCalculator[[#This Row],[IPPHours]]*FCP,0), ROUNDDOWN(tblCalculator[[#This Row],[IPPHours]]*AdjFCP, 0))) ->  | K21: =IF(OR(ISBLANK(tblCalculator[[#This Row],[IPPHours]]), ISBLANK(tblCalculator[[#This Row],[Rate]]), FCP=""), "", tblCalculator[[#This Row],[FSHours]]*tblCalculator[Rate]) ->  | L21: =IF(tblCalculator[[#This Row],[FSCost]]="", "", IF(tblCalculator[[#This Row],[Time Period]]="Quarterly", tblCalculator[[#This Row],[FSCost]]/3, IF(tblCalculator[[#This Row],[Time Period]]="Annually", tblCalculator[[#This Row],[FSCost]]/12, tblCalculator[[#This Row],[FSCost]]))) -> 
H22: =IF(OR(ISBLANK(tblCalculator[[#This Row],[IPPHours]]), ISBLANK(tblCalculator[[#This Row],[Rate]]), FCP=""), "", IF(ISBLANK(AdjFCP), ROUNDUP(tblCalculator[[#This Row],[IPPHours]]*(1-FCP),0), ROUNDUP(tblCalculator[[#This Row],[IPPHours]]*(1-AdjFCP), 0))) ->  | I22: =IF(OR(ISBLANK(tblCalculator[[#This Row],[IPPHours]]), ISBLANK(tblCalculator[[#This Row],[Rate]]), FCP=""), "", tblCalculator[RCHours]*tblCalculator[[#This Row],[Rate]]) ->  | J22: =IF(OR(ISBLANK(tblCalculator[[#This Row],[IPPHours]]), ISBLANK(tblCalculator[[#This Row],[Rate]]), FCP=""), "", IF(ISBLANK(AdjFCP), ROUNDDOWN(tblCalculator[[#This Row],[IPPHours]]*FCP,0), ROUNDDOWN(tblCalculator[[#This Row],[IPPHours]]*AdjFCP, 0))) ->  | K22: =IF(OR(ISBLANK(tblCalculator[[#This Row],[IPPHours]]), ISBLANK(tblCalculator[[#This Row],[Rate]]), FCP=""), "", tblCalculator[[#This Row],[FSHours]]*tblCalculator[Rate]) ->  | L22: =IF(tblCalculator[[#This Row],[FSCost]]="", "", IF(tblCalculator[[#This Row],[Time Period]]="Quarterly", tblCalculator[[#This Row],[FSCost]]/3, IF(tblCalculator[[#This Row],[Time Period]]="Annually", tblCalculator[[#This Row],[FSCost]]/12, tblCalculator[[#This Row],[FSCost]]))) -> 
H23: =IF(OR(ISBLANK(tblCalculator[[#This Row],[IPPHours]]), ISBLANK(tblCalculator[[#This Row],[Rate]]), FCP=""), "", IF(ISBLANK(AdjFCP), ROUNDUP(tblCalculator[[#This Row],[IPPHours]]*(1-FCP),0), ROUNDUP(tblCalculator[[#This Row],[IPPHours]]*(1-AdjFCP), 0))) ->  | I23: =IF(OR(ISBLANK(tblCalculator[[#This Row],[IPPHours]]), ISBLANK(tblCalculator[[#This Row],[Rate]]), FCP=""), "", tblCalculator[RCHours]*tblCalculator[[#This Row],[Rate]]) ->  | J23: =IF(OR(ISBLANK(tblCalculator[[#This Row],[IPPHours]]), ISBLANK(tblCalculator[[#This Row],[Rate]]), FCP=""), "", IF(ISBLANK(AdjFCP), ROUNDDOWN(tblCalculator[[#This Row],[IPPHours]]*FCP,0), ROUNDDOWN(tblCalculator[[#This Row],[IPPHours]]*AdjFCP, 0))) ->  | K23: =IF(OR(ISBLANK(tblCalculator[[#This Row],[IPPHours]]), ISBLANK(tblCalculator[[#This Row],[Rate]]), FCP=""), "", tblCalculator[[#This Row],[FSHours]]*tblCalculator[Rate]) ->  | L23: =IF(tblCalculator[[#This Row],[FSCost]]="", "", IF(tblCalculator[[#This Row],[Time Period]]="Quarterly", tblCalculator[[#This Row],[FSCost]]/3, IF(tblCalculator[[#This Row],[Time Period]]="Annually", tblCalculator[[#This Row],[FSCost]]/12, tblCalculator[[#This Row],[FSCost]]))) -> 
H24: =IF(OR(ISBLANK(tblCalculator[[#This Row],[IPPHours]]), ISBLANK(tblCalculator[[#This Row],[Rate]]), FCP=""), "", IF(ISBLANK(AdjFCP), ROUNDUP(tblCalculator[[#This Row],[IPPHours]]*(1-FCP),0), ROUNDUP(tblCalculator[[#This Row],[IPPHours]]*(1-AdjFCP), 0))) ->  | I24: =IF(OR(ISBLANK(tblCalculator[[#This Row],[IPPHours]]), ISBLANK(tblCalculator[[#This Row],[Rate]]), FCP=""), "", tblCalculator[RCHours]*tblCalculator[[#This Row],[Rate]]) ->  | J24: =IF(OR(ISBLANK(tblCalculator[[#This Row],[IPPHours]]), ISBLANK(tblCalculator[[#This Row],[Rate]]), FCP=""), "", IF(ISBLANK(AdjFCP), ROUNDDOWN(tblCalculator[[#This Row],[IPPHours]]*FCP,0), ROUNDDOWN(tblCalculator[[#This Row],[IPPHours]]*AdjFCP, 0))) ->  | K24: =IF(OR(ISBLANK(tblCalculator[[#This Row],[IPPHours]]), ISBLANK(tblCalculator[[#This Row],[Rate]]), FCP=""), "", tblCalculator[[#This Row],[FSHours]]*tblCalculator[Rate]) ->  | L24: =IF(tblCalculator[[#This Row],[FSCost]]="", "", IF(tblCalculator[[#This Row],[Time Period]]="Quarterly", tblCalculator[[#This Row],[FSCost]]/3, IF(tblCalculator[[#This Row],[Time Period]]="Annually", tblCalculator[[#This Row],[FSCost]]/12, tblCalculator[[#This Row],[FSCost]]))) -> 
H25: =IF(OR(ISBLANK(tblCalculator[[#This Row],[IPPHours]]), ISBLANK(tblCalculator[[#This Row],[Rate]]), FCP=""), "", IF(ISBLANK(AdjFCP), ROUNDUP(tblCalculator[[#This Row],[IPPHours]]*(1-FCP),0), ROUNDUP(tblCalculator[[#This Row],[IPPHours]]*(1-AdjFCP), 0))) ->  | I25: =IF(OR(ISBLANK(tblCalculator[[#This Row],[IPPHours]]), ISBLANK(tblCalculator[[#This Row],[Rate]]), FCP=""), "", tblCalculator[RCHours]*tblCalculator[[#This Row],[Rate]]) ->  | J25: =IF(OR(ISBLANK(tblCalculator[[#This Row],[IPPHours]]), ISBLANK(tblCalculator[[#This Row],[Rate]]), FCP=""), "", IF(ISBLANK(AdjFCP), ROUNDDOWN(tblCalculator[[#This Row],[IPPHours]]*FCP,0), ROUNDDOWN(tblCalculator[[#This Row],[IPPHours]]*AdjFCP, 0))) ->  | K25: =IF(OR(ISBLANK(tblCalculator[[#This Row],[IPPHours]]), ISBLANK(tblCalculator[[#This Row],[Rate]]), FCP=""), "", tblCalculator[[#This Row],[FSHours]]*tblCalculator[Rate]) ->  | L25: =IF(tblCalculator[[#This Row],[FSCost]]="", "", IF(tblCalculator[[#This Row],[Time Period]]="Quarterly", tblCalculator[[#This Row],[FSCost]]/3, IF(tblCalculator[[#This Row],[Time Period]]="Annually", tblCalculator[[#This Row],[FSCost]]/12, tblCalculator[[#This Row],[FSCost]]))) -> 
H26: =IF(OR(ISBLANK(tblCalculator[[#This Row],[IPPHours]]), ISBLANK(tblCalculator[[#This Row],[Rate]]), FCP=""), "", IF(ISBLANK(AdjFCP), ROUNDUP(tblCalculator[[#This Row],[IPPHours]]*(1-FCP),0), ROUNDUP(tblCalculator[[#This Row],[IPPHours]]*(1-AdjFCP), 0))) ->  | I26: =IF(OR(ISBLANK(tblCalculator[[#This Row],[IPPHours]]), ISBLANK(tblCalculator[[#This Row],[Rate]]), FCP=""), "", tblCalculator[RCHours]*tblCalculator[[#This Row],[Rate]]) ->  | J26: =IF(OR(ISBLANK(tblCalculator[[#This Row],[IPPHours]]), ISBLANK(tblCalculator[[#This Row],[Rate]]), FCP=""), "", IF(ISBLANK(AdjFCP), ROUNDDOWN(tblCalculator[[#This Row],[IPPHours]]*FCP,0), ROUNDDOWN(tblCalculator[[#This Row],[IPPHours]]*AdjFCP, 0))) ->  | K26: =IF(OR(ISBLANK(tblCalculator[[#This Row],[IPPHours]]), ISBLANK(tblCalculator[[#This Row],[Rate]]), FCP=""), "", tblCalculator[[#This Row],[FSHours]]*tblCalculator[Rate]) ->  | L26: =IF(tblCalculator[[#This Row],[FSCost]]="", "", IF(tblCalculator[[#This Row],[Time Period]]="Quarterly", tblCalculator[[#This Row],[FSCost]]/3, IF(tblCalculator[[#This Row],[Time Period]]="Annually", tblCalculator[[#This Row],[FSCost]]/12, tblCalculator[[#This Row],[FSCost]]))) -> 
H27: =IF(OR(ISBLANK(tblCalculator[[#This Row],[IPPHours]]), ISBLANK(tblCalculator[[#This Row],[Rate]]), FCP=""), "", IF(ISBLANK(AdjFCP), ROUNDUP(tblCalculator[[#This Row],[IPPHours]]*(1-FCP),0), ROUNDUP(tblCalculator[[#This Row],[IPPHours]]*(1-AdjFCP), 0))) ->  | I27: =IF(OR(ISBLANK(tblCalculator[[#This Row],[IPPHours]]), ISBLANK(tblCalculator[[#This Row],[Rate]]), FCP=""), "", tblCalculator[RCHours]*tblCalculator[[#This Row],[Rate]]) ->  | J27: =IF(OR(ISBLANK(tblCalculator[[#This Row],[IPPHours]]), ISBLANK(tblCalculator[[#This Row],[Rate]]), FCP=""), "", IF(ISBLANK(AdjFCP), ROUNDDOWN(tblCalculator[[#This Row],[IPPHours]]*FCP,0), ROUNDDOWN(tblCalculator[[#This Row],[IPPHours]]*AdjFCP, 0))) ->  | K27: =IF(OR(ISBLANK(tblCalculator[[#This Row],[IPPHours]]), ISBLANK(tblCalculator[[#This Row],[Rate]]), FCP=""), "", tblCalculator[[#This Row],[FSHours]]*tblCalculator[Rate]) ->  | L27: =IF(tblCalculator[[#This Row],[FSCost]]="", "", IF(tblCalculator[[#This Row],[Time Period]]="Quarterly", tblCalculator[[#This Row],[FSCost]]/3, IF(tblCalculator[[#This Row],[Time Period]]="Annually", tblCalculator[[#This Row],[FSCost]]/12, tblCalculator[[#This Row],[FSCost]]))) -> 
B28: Total | H28: =SUBTOTAL(109,tblCalculator[RCHours]) -> 0 | I28: =SUBTOTAL(109,tblCalculator[RCCost]) -> 0 | J28: =SUBTOTAL(109,tblCalculator[FSHours]) -> 0 | K28: =SUBTOTAL(109,tblCalculator[FSCost]) -> 0 | L28: =SUBTOTAL(109,tblCalculator[AFSCost]) -> 0
B29: =IF(tblCalculator[[#Totals],[AFSCost]]>maxMonthly,"Adjusted Total", "") ->  | L29: =IF(tblCalculator[[#Totals],[AFSCost]]>maxMonthly, CONCATENATE(TEXT(maxMonthly, "$#,##0.00"), "*"), "") -> 
B31: =IF(tblCalculator[[#Totals],[AFSCost]]>maxMonthly, CONCATENATE("*Your total Family Share exceeded the maximum allowable amount. The adjusted total reflects your ", Variables!A23, " family share."), "") -> 

Sheet Variables (hidden)
A1: Federal Poverty Levels from the HHS Poverty Guidelines | F1: Service | H1: Adjustments for multiple consumers | I1: =1 - (VLOOKUP(NumCons, tblAdjMultiCons[], 2)) ->  | K1: Maximum [Family Share] based on age group | N1: Consumer Age | P1: =IF(OR(ISBLANK(DOB), ISBLANK(AssessDate)), "", DATEDIF(DOB,AssessDate,"Y")) -> 
F2: Camp | N2: Maximum Age | P2: =MAX(tblCAG[[From Age]:[To Age]]) -> 17
A3: Effective Date: | C3: 2018-04-01 | F3: Day Care | H3: # Consumers | I3: Reduced By | K3: Time Period | L3: Max Amount | N3: From Age | O3: To Age | P3: Maximum Annual
A4: Family Size | C4: Federal Poverty Amount | D4: Minumum Gross Income | F4: Respite | H4: 1 | I4: 0 | K4: Monthly | L4: =IF(Age > MaxAge, "", VLOOKUP(Age, tblCAG[], 3) / 12) ->  | N4: 0 | O4: 2 | P4: 20664
A5: 2 | C5: 16460 | D5: =C5*4 -> 65840 | H5: 2 | I5: 0.25 | K5: Quarterly | L5: =IF(Age > MaxAge, "", VLOOKUP(Age, tblCAG[], 3) / 4) ->  | N5: 3 | O5: 5 | P5: 20676
A6: 3 | C6: 20780 | D6: =C6*4 -> 83120 | H6: 3 | I6: 0.5 | K6: Annually | L6: =IF(Age > MaxAge, "", VLOOKUP(Age, tblCAG[], 3)) ->  | N6: 6 | O6: 8 | P6: 20280
A7: 4 | C7: 25100 | D7: 100400 | H7: 4 | I7: 0.75 | N7: 9 | O7: 11 | P7: 21564
A8: 5 | C8: 29420 | D8: 117680 | H8: 5 | I8: 1 | N8: 12 | O8: 14 | P8: 21900
A9: 6 | C9: 33740 | D9: 134960 | N9: 15 | O9: 17 | P9: 24144
A10: 7 | C10: 38060 | D10: 152240
A11: 8 | C11: 42380 | D11: 169520
A12: 9 | C12: 46700 | D12: 186800
A13: 10 | C13: 51020 | D13: 204080
A14: Note: Change the Effective Date and FP Amount whenever necessary
A17: FCP Percentage | C17: =IF(FamSize>10,INDEX('FCPA Schedule'!$A$8:$A$38,MATCH(GIP,INDEX('FCPA Schedule'!$B$8:$J$38,0,MATCH(10,'FCPA Schedule'!$B$7:$J$7,0)))),INDEX('FCPA Schedule'!$A$8:$A$38,MATCH(GIP,INDEX('FCPA Schedule'!$B$8:$J$38,0,MATCH(FamSize,'FCPA Schedule'!$B$7:$J$7,0))))) -> 
A18: Adjusted FCP % | C18: =IF(tblCalculator[[#Totals],[FSCost]]>maxAnnual, MIN(tblCalculator[[#Totals],[FSCost]], maxAnnual) / (tblCalculator[[#Totals],[FSCost]]+tblCalculator[[#Totals],[RCCost]]), "") -> 
A19: No Income Provided | C19: FALSE
A20: Gross Income Provided
A22: m o n t h l y | B22: ͟ | C22: ←DO NOT DELETE
A23: =SUBSTITUTE(A22, " ", B22) -> m͟o͟n͟t͟h͟l͟y | C23: ←DO NOT DELETE

Sheet FCPA Schedule
A1: STATE OF CALIFORNIA
A2: DEPARTMENT OF DEVELOPMENTAL SERVICES
A3: =CONCATENATE(YEAR(EffectiveDate)," FAMILY COST PARTICIPATION ASSESSMENT SCHEDULE") -> 2018 FAMILY COST PARTICIPATION ASSESSMENT SCHEDULE
A4: =CONCATENATE("Effective ",TEXT(EffectiveDate, "mmmm d, yyyy")) -> Effective April 1, 2018
B6: Number of Persons Living In The Family Home
A7: %FCP* | B7: 2 | C7: 3 | D7: 4 | E7: 5 | F7: 6 | G7: 7 | H7: 8 | I7: 9 | J7: 10
A8: 0.1 | B8: =Variables!$C$5*4 -> 65840 | C8: =Variables!$C$6*4 -> 83120 | D8: =Variables!$C$7*4 -> 100400 | E8: =Variables!$C$8*4 -> 117680 | F8: =Variables!$C$9*4 -> 134960 | G8: =Variables!$C$10*4 -> 152240 | H8: =Variables!$C$11*4 -> 169520 | I8: =Variables!$C$12*4 -> 186800 | J8: =Variables!$C$13*4 -> 204080
A9: 0.1 | B9: =B8*1.05 -> 69132 | C9: =C8*1.05 -> 87276 | D9: 105420 | E9: 123564 | F9: 141708 | G9: 159852 | H9: 177996 | I9: 196140 | J9: 214284
A10: 0.1 | B10: =B9+(B9-B8) -> 72424 | C10: =C9+(C9-C8) -> 91432 | D10: 110440 | E10: 129448 | F10: 148456 | G10: 167464 | H10: 186472 | I10: 205480 | J10: 224488
A11: 0.1 | B11: =B10+(B10-B9) -> 75716 | C11: =C10+(C10-C9) -> 95588 | D11: =D10+(D10-D9) -> 115460 | E11: =E10+(E10-E9) -> 135332 | F11: =F10+(F10-F9) -> 155204 | G11: =G10+(G10-G9) -> 175076 | H11: =H10+(H10-H9) -> 194948 | I11: =I10+(I10-I9) -> 214820 | J11: =J10+(J10-J9) -> 234692
A12: 0.1 | B12: 79008 | C12: 99744 | D12: 120480 | E12: 141216 | F12: 161952 | G12: 182688 | H12: 203424 | I12: 224160 | J12: 244896
A13: 0.11 | B13: 82300 | C13: 103900 | D13: 125500 | E13: 147100 | F13: 168700 | G13: 190300 | H13: 211900 | I13: 233500 | J13: 255100
A14: 0.12 | B14: 85592 | C14: 108056 | D14: 130520 | E14: 152984 | F14: 175448 | G14: 197912 | H14: 220376 | I14: 242840 | J14: 265304
A15: 0.13 | B15: 88884 | C15: 112212 | D15: 135540 | E15: 158868 | F15: 182196 | G15: 205524 | H15: 228852 | I15: 252180 | J15: 275508
A16: 0.14 | B16: 92176 | C16: 116368 | D16: 140560 | E16: 164752 | F16: 188944 | G16: 213136 | H16: 237328 | I16: 261520 | J16: 285712
A17: 0.15 | B17: 95468 | C17: 120524 | D17: 145580 | E17: 170636 | F17: 195692 | G17: 220748 | H17: 245804 | I17: 270860 | J17: 295916
A18: 0.16 | B18: 98760 | C18: 124680 | D18: 150600 | E18: 176520 | F18: 202440 | G18: 228360 | H18: 254280 | I18: 280200 | J18: 306120
A19: 0.17 | B19: 102052 | C19: 128836 | D19: 155620 | E19: 182404 | F19: 209188 | G19: 235972 | H19: 262756 | I19: 289540 | J19: 316324
A20: 0.18 | B20: =B19+(B19-B18) -> 105344 | C20: =C19+(C19-C18) -> 132992 | D20: =D19+(D19-D18) -> 160640 | E20: =E19+(E19-E18) -> 188288 | F20: =F19+(F19-F18) -> 215936 | G20: =G19+(G19-G18) -> 243584 | H20: =H19+(H19-H18) -> 271232 | I20: =I19+(I19-I18) -> 298880 | J20: =J19+(J19-J18) -> 326528
A21: 0.19 | B21: 108636 | C21: 137148 | D21: 165660 | E21: 194172 | F21: 222684 | G21: 251196 | H21: 279708 | I21: 308220 | J21: 336732
A22: 0.2 | B22: 111928 | C22: 141304 | D22: 170680 | E22: 200056 | F22: 229432 | G22: 258808 | H22: 288184 | I22: 317560 | J22: 346936
A23: 0.25 | B23: 115220 | C23: 145460 | D23: 175700 | E23: 205940 | F23: 236180 | G23: 266420 | H23: 296660 | I23: 326900 | J23: 357140
A24: 0.3 | B24: 118512 | C24: 149616 | D24: 180720 | E24: 211824 | F24: 242928 | G24: 274032 | H24: 305136 | I24: 336240 | J24: 367344
A25: 0.35 | B25: 121804 | C25: 153772 | D25: 185740 | E25: 217708 | F25: 249676 | G25: 281644 | H25: 313612 | I25: 345580 | J25: 377548
A26: 0.4 | B26: 125096 | C26: 157928 | D26: 190760 | E26: 223592 | F26: 256424 | G26: 289256 | H26: 322088 | I26: 354920 | J26: 387752
A27: 0.45 | B27: 128388 | C27: 162084 | D27: 195780 | E27: 229476 | F27: 263172 | G27: 296868 | H27: 330564 | I27: 364260 | J27: 397956
A28: 0.5 | B28: 131680 | C28: 166240 | D28: 200800 | E28: 235360 | F28: 269920 | G28: 304480 | H28: 339040 | I28: 373600 | J28: 408160
A29: 0.55 | B29: 134972 | C29: 170396 | D29: 205820 | E29: 241244 | F29: 276668 | G29: 312092 | H29: 347516 | I29: 382940 | J29: 418364
A30: 0.6 | B30: 138264 | C30: 174552 | D30: 210840 | E30: 247128 | F30: 283416 | G30: 319704 | H30: 355992 | I30: 392280 | J30: 428568
A31: 0.65 | B31: 141556 | C31: 178708 | D31: 215860 | E31: 253012 | F31: 290164 | G31: 327316 | H31: 364468 | I31: 401620 | J31: 438772
A32: 0.7 | B32: 144848 | C32: 182864 | D32: 220880 | E32: 258896 | F32: 296912 | G32: 334928 | H32: 372944 | I32: 410960 | J32: 448976
A33: 0.75 | B33: 148140 | C33: 187020 | D33: 225900 | E33: 264780 | F33: 303660 | G33: 342540 | H33: 381420 | I33: 420300 | J33: 459180
A34: 0.8 | B34: 151432 | C34: 191176 | D34: 230920 | E34: 270664 | F34: 310408 | G34: 350152 | H34: 389896 | I34: 429640 | J34: 469384
A35: 0.85 | B35: 154724 | C35: 195332 | D35: 235940 | E35: 276548 | F35: 317156 | G35: 357764 | H35: 398372 | I35: 438980 | J35: 479588
A36: 0.9 | B36: 158016 | C36: 199488 | D36: 240960 | E36: 282432 | F36: 323904 | G36: 365376 | H36: 406848 | I36: 448320 | J36: 489792
A37: 0.95 | B37: 161308 | C37: 203644 | D37: 245980 | E37: 288316 | F37: 330652 | G37: 372988 | H37: 415324 | I37: 457660 | J37: 499996
A38: 1 | B38: 164600 | C38: 207800 | D38: 251000 | E38: 294200 | F38: 337400 | G38: 380600 | H38: 423800 | I38: 467000 | J38: 510200
A40: *RESPITE, DAY CARE, AND CAMPING as defined in Title 17, California Code of Regulations, Section 54342.
A41: (Note: This progran shall not exempt parents from responsiblities for Day Care pursuant to the Welfare and Institutions Code,Section 4685 (c)(6).)
